fUST/lending_fUST_20250216
["ID","MTS","AMOUNT","RATE_DAILY","PERIOD"]
[353199532,1739645155354,500.0,8.843e-05,2]
[353199533,1739645155627,500.0,8.843e-05,2]
[353199534,1739645156504,500.0,8.843e-05,2]
[353199535,1739645158124,500.0,8.843e-05,2]
[353199536,1739645158751,500.0,8.843e-05,2]
[353199537,1739645161772,500.0,8.843e-05,2]
[353199538,1739645163742,710.47,8.843e-05,2]
[353199539,1739645164870,509.80452725,8.843e-05,2]
[353199540,1739645172289,500.0,8.843e-05,2]
[353199541,1739645172605,501.1791976,8.843e-05,2]
[353199542,1739645173383,543.99,8.843e-05,2]
[353199543,1739645176357,585.25,8.843e-05,2]
[353199544,1739645177787,500.0,8.843e-05,2]
[353199545,1739645178314,500.0,8.843e-05,2]
[353199546,1739645181427,500.0,8.843e-05,2]
[353199547,1739645181728,500.0,8.843e-05,2]
[353199548,1739645182413,545.5,8.843e-05,2]
[353199549,1739645183783,500.0,8.843e-05,2]
[353199550,1739645186145,6457.02,8.843e-05,2]
[353199551,1739645186242,2329.67,8.843e-05,2]
[353199552,1739645188930,500.0,8.843e-05,2]
[353199553,1739645194183,500.0,8.843e-05,2]
[353199554,1739645195011,870.86,8.843e-05,2]
[353199555,1739645197693,500.7976306,8.843e-05,2]
[353199556,1739645198855,500.0,8.843e-05,2]
[353199557,1739645200233,500.32942337,8.843e-05,2]
[353199558,1739645202929,2380.35,8.843e-05,2]
[353199559,1739645206127,500.0,8.843e-05,2]
[353199560,1739645208237,2771.23,8.843e-05,2]
[353199561,1739645209628,500.0,8.843e-05,2]
[353199562,1739645211071,500.0,8.843e-05,2]
[353199563,1739645211539,500.0,8.843e-05,2]
[353199564,1739645213658,1429.56,8.843e-05,2]
[353199565,1739645217816,500.0,8.843e-05,2]
[353199566,1739645218520,500.0,8.843e-05,2]
[353199567,1739645222521,500.0,8.843e-05,2]
[353199568,1739645223342,1154.41,8.843e-05,2]
[353199569,1739645224207,500.0,8.843e-05,2]
[353199570,1739645224788,778.04,8.843e-05,2]
[353199571,1739645225232,500.0,8.843e-05,2]
[353199572,1739645231594,500.0,8.843e-05,2]
[353199573,1739645232826,500.99628428,8.843e-05,2]
[353199574,1739645235359,500.0,8.843e-05,2]
[353199575,1739645236441,500.0,8.843e-05,2]
[353199576,1739645240688,500.0,8.843e-05,2]
[353199577,1739645245289,500.0,8.843e-05,2]
[353199578,1739645245414,500.0,8.843e-05,2]
[353199579,1739645247714,500.22365524,8.843e-05,2]
[353199580,1739645248077,1833.94,8.843e-05,2]
[353199581,1739645248666,500.0,8.843e-05,2]
[353199582,1739645249436,500.36360928,8.843e-05,2]
[353199583,1739645251210,500.0,8.843e-05,2]
[353199584,1739645251296,500.0,8.843e-05,2]
[353199585,1739645251761,1101.55,8.843e-05,2]
[353199586,1739645254952,500.0,8.843e-05,2]
[353199587,1739645256791,1282.94,8.843e-05,2]
[353199588,1739645257963,500.0,8.843e-05,2]
[353199589,1739645258166,1132.57,8.843e-05,2]
[353199590,1739645259581,500.0,8.843e-05,2]
[353199591,1739645262465,500.0,8.843e-05,2]
[353199592,1739645265784,2792.61,8.843e-05,2]
[353199593,1739645266618,500.0,8.843e-05,2]
[353199594,1739645274278,501.58760502,8.843e-05,2]
[353199595,1739645274671,5371.84,8.843e-05,2]
[353199596,1739645275964,500.0,8.843e-05,2]
[353199597,1739645276180,500.0,8.843e-05,2]
[353199598,1739645276719,500.0,8.843e-05,2]
[353199599,1739645277738,500.0,8.843e-05,2]
[353199600,1739645279280,500.0,8.843e-05,2]
[353199601,1739645279322,500.0,8.843e-05,2]
[353199602,1739645279407,500.0,8.843e-05,2]
[353199603,1739645281600,500.0,8.843e-05,2]
[353199604,1739645283454,500.0,8.843e-05,2]
[353199605,1739645283488,500.0,8.843e-05,2]
[353199606,1739645287059,500.0,8.843e-05,2]
[353199607,1739645290201,500.69529481,8.843e-05,2]
[353199608,1739645291123,501.19763552,8.843e-05,2]
[353199609,1739645294043,500.0,8.843e-05,2]
[353199610,1739645297352,500.0,8.843e-05,2]
[353199611,1739645298365,500.0,8.843e-05,2]
[353199612,1739645298794,500.0,8.843e-05,2]
[353199613,1739645300754,750.79,8.843e-05,2]
[353199614,1739645303642,464.81999802,8.843e-05,2]
[353199615,1739645304297,607.08,8.843e-05,2]
[353199616,1739645305650,500.0,8.843e-05,2]
[353199617,1739645308178,500.0,8.843e-05,2]
[353199618,1739645308477,500.0,8.843e-05,2]
[353199619,1739645310966,3474.8,8.843e-05,2]
[353199620,1739645311738,500.0,8.843e-05,2]
[353199621,1739645312794,500.0,8.843e-05,2]
[353199622,1739645313741,500.0,8.843e-05,2]
[353199623,1739645314364,538.86,8.843e-05,2]
[353199624,1739645317631,500.0,8.843e-05,2]
[353199625,1739645321746,500.0,8.843e-05,2]
[353199626,1739645323490,2050.15,8.843e-05,2]
[353199627,1739645324218,500.0,8.843e-05,2]
[353199628,1739645324469,500.0,8.843e-05,2]
[353199629,1739645329972,612.7,8.843e-05,2]
[353199630,1739645330677,500.0,8.843e-05,2]
[353199631,1739645331617,1586.46,8.843e-05,2]
[353199632,1739645335320,500.0,8.843e-05,2]
[353199633,1739645336690,500.0,8.843e-05,2]
[353199634,1739645337349,500.0,8.843e-05,2]
[353199635,1739645338902,1544.7,8.843e-05,2]
[353199636,1739645341183,500.0,8.843e-05,2]
[353199637,1739645341563,500.0,8.843e-05,2]
[353199638,1739645342081,500.0,8.843e-05,2]
[353199639,1739645343520,500.0,8.843e-05,2]
[353199640,1739645344156,500.0,8.843e-05,2]
[353199641,1739645345949,2272.83,8.843e-05,2]
[353199642,1739645346018,520.61410319,8.843e-05,2]
[353199643,1739645346474,500.0,8.843e-05,2]
[353199644,1739645346945,500.0,8.843e-05,2]
[353199645,1739645349037,500.0,8.843e-05,2]
[353199646,1739645349873,684.02,8.843e-05,2]
[353199647,1739645350703,500.0,8.843e-05,2]
[353199648,1739645352194,1599.6,8.843e-05,2]
[353199649,1739645352764,500.0,8.843e-05,2]
[353199650,1739645356871,500.0,8.843e-05,2]
[353199651,1739645358277,500.0,8.843e-05,2]
[353199652,1739645359629,500.0,8.843e-05,2]
[353199653,1739645359665,613.64,8.843e-05,2]
[353199654,1739645359939,500.0,8.843e-05,2]
[353199655,1739645360657,500.0,8.843e-05,2]
[353199656,1739645362871,600.79,8.843e-05,2]
[353199657,1739645364022,2291.42,8.843e-05,2]
[353199658,1739645364056,3751.41,8.843e-05,2]
[353199659,1739645364274,3751.41,8.843e-05,2]
[353199660,1739645364550,3751.41,8.843e-05,2]
[353199661,1739645364629,500.0,8.843e-05,2]
[353199662,1739645364883,3751.41,8.843e-05,2]
[353199663,1739645365091,3751.41,8.843e-05,2]
[353199664,1739645365358,3751.41,8.843e-05,2]
[353199665,1739645365622,3751.41,8.843e-05,2]
[353199666,1739645368401,500.0,8.843e-05,2]
[353199667,1739645368675,155.89531683,8.843e-05,2]
[353199668,1739645371968,500.0,8.843e-05,2]
[353199669,1739645374626,500.0,8.843e-05,2]
[353199670,1739645374675,500.0,8.843e-05,2]
[353199671,1739645376287,500.0,8.843e-05,2]
[353199672,1739645376919,500.0,8.843e-05,2]
[353199673,1739645377510,500.0,8.843e-05,2]
[353199674,1739645378971,607.43,8.843e-05,2]
[353199675,1739645380185,500.0,8.843e-05,2]
[353199676,1739645382191,500.0,8.843e-05,2]
[353199677,1739645382274,500.0,8.843e-05,2]
[353199678,1739645387167,500.0,8.843e-05,2]
[353199679,1739645390068,500.0,8.843e-05,2]
[353199680,1739645390426,500.0,8.843e-05,2]
[353199681,1739645392339,515.8,8.843e-05,2]
[353199682,1739645393127,500.0,8.843e-05,2]
[353199683,1739645394548,356.66596316,8.843e-05,2]
[353199684,1739645396988,500.0,8.843e-05,2]
[353199685,1739645397455,18298.84,8.843e-05,2]
[353199686,1739645397577,6234.85345764,8.7e-05,2]
[353199687,1739645403005,500.0,8.843e-05,2]
[353199688,1739645405026,725.13,8.843e-05,2]
[353199689,1739645405301,500.0,8.843e-05,2]
[353199690,1739645406057,500.0,8.843e-05,2]
[353199691,1739645406262,500.0,8.843e-05,2]
[353199692,1739645408087,500.0,8.843e-05,2]
[353199693,1739645409410,500.0,8.843e-05,2]
[353199694,1739645410012,500.0,8.843e-05,2]
[353199695,1739645410357,3804.6,8.843e-05,2]
[353199696,1739645411325,2329.46,8.843e-05,2]
[353199697,1739645413701,528.84648786,8.843e-05,2]
[353199698,1739645415081,6452.41,8.843e-05,2]
[353199699,1739645415187,1485.53,8.843e-05,2]
[353199700,1739645415710,500.0,8.843e-05,2]
[353199701,1739645415744,500.0,8.843e-05,2]
[353199702,1739645416591,500.0,8.843e-05,2]
[353199703,1739645417745,500.0,8.843e-05,2]
[353199704,1739645421524,500.0,8.843e-05,2]
[353199705,1739645421836,500.0,8.843e-05,2]
[353199706,1739645423816,500.0,8.843e-05,2]
[353199707,1739645427500,500.0,8.843e-05,2]
[353199708,1739645428428,692.06,8.843e-05,2]
[353199709,1739645430040,912.18,8.843e-05,2]
[353199721,1739645431997,500.0,8.843e-05,2]
[353199764,1739645432398,-520.991,8.844e-05,2]
[353199766,1739645432408,-481.0785654,8.844e-05,2]
[353199768,1739645432418,-500.0,8.844e-05,2]
[353199769,1739645432427,-801.58,8.844e-05,2]
[353199772,1739645432437,-500.0,8.844e-05,2]
[353199774,1739645432446,-960.12,8.844e-05,2]
[353199777,1739645432466,-500.0,8.844e-05,2]
[353199780,1739645432484,-500.0,8.844e-05,2]
[353199782,1739645432498,-824.58,8.844e-05,2]
[353199785,1739645432515,-500.0,8.844e-05,2]
[353199787,1739645432530,-627.94,8.844e-05,2]
[353199790,1739645432547,-500.0,8.844e-05,2]
[353199793,1739645432563,-500.0,8.844e-05,2]
[353199795,1739645432579,-1321.84,8.844e-05,2]
[353199796,1739645432594,-563.87450709,8.844e-05,2]
[353199797,1739645432610,-802.8,8.844e-05,2]
[353199799,1739645432625,-500.0,8.844e-05,2]
[353199803,1739645432639,-500.0,8.844e-05,2]
[353199807,1739645432651,-500.0,8.844e-05,2]
[353199811,1739645432665,-508.99410615,8.844e-05,2]
[353199813,1739645432681,-842.21,8.844e-05,2]
[353199816,1739645432697,-837.4,8.844e-05,2]
[353199817,1739645432714,-739.75,8.844e-05,2]
[353199818,1739645432728,-500.0,8.844e-05,2]
[353199819,1739645432740,-500.0,8.844e-05,2]
[353199820,1739645432753,-500.0,8.844e-05,2]
[353199821,1739645432772,-692.31,8.844e-05,2]
[353199823,1739645432786,-1289.85,8.844e-05,2]
[353199825,1739645432799,-500.0,8.844e-05,2]
[353199828,1739645432814,-500.0,8.844e-05,2]
[353199830,1739645432825,-556.22,8.844e-05,2]
[353199832,1739645432837,-1133.39,8.844e-05,2]
[353199835,1739645432857,-500.0,8.844e-05,2]
[353199838,1739645432871,-500.0,8.844e-05,2]
[353199840,1739645432886,-500.0,8.844e-05,2]
[353199843,1739645432899,-500.0,8.844e-05,2]
[353199845,1739645432912,-1134.18,8.844e-05,2]
[353199848,1739645432925,-500.0,8.844e-05,2]
[353199850,1739645432938,-633.53,8.844e-05,2]
[353199853,1739645432951,-500.0,8.844e-05,2]
[353199855,1739645432965,-814.75,8.844e-05,2]
[353199858,1739645432979,-545.71,8.844e-05,2]
[353199860,1739645432992,-541.02,8.844e-05,2]
[353199862,1739645433005,-500.0,8.844e-05,2]
[353199865,1739645433018,-500.0,8.844e-05,2]
[353199867,1739645433031,-4211.65,8.844e-05,2]
[353199870,1739645433045,-902.44,8.844e-05,2]
[353199872,1739645433058,-182.95326227,8.844e-05,2]
[353199874,1739645433071,-500.0,8.844e-05,2]
[353199877,1739645433085,-629.33,8.844e-05,2]
[353199879,1739645433098,-500.0,8.844e-05,2]
[353199882,1739645433111,-16733.87,8.844e-05,2]
[353199884,1739645433124,-500.0,8.844e-05,2]
[353199887,1739645433137,-1192.99,8.844e-05,2]
[353199889,1739645433150,-500.0,8.844e-05,2]
[353199891,1739645433164,-500.0,8.844e-05,2]
[353199894,1739645433177,-1454.79,8.844e-05,2]
[353199896,1739645433191,-618.09,8.844e-05,2]
[353199899,1739645433204,-46897.06,8.844e-05,2]
[353199901,1739645433218,-2287.65,8.844e-05,2]
[353199903,1739645433230,-500.0,8.844e-05,2]
[353199906,1739645433244,-2578.55,8.844e-05,2]
[353199908,1739645433257,-151.27837567,8.844e-05,2]
[353199911,1739645433270,-1791.11,8.844e-05,2]
[353199913,1739645433283,-500.0,8.844e-05,2]
[353199915,1739645433297,-1035.41,8.844e-05,2]
[353199918,1739645433309,-500.0,8.844e-05,2]
[353199920,1739645433322,-500.0,8.844e-05,2]
[353199923,1739645433336,-500.0,8.844e-05,2]
[353199925,1739645433349,-500.0,8.844e-05,2]
[353199928,1739645433363,-500.0,8.844e-05,2]
[353199930,1739645433377,-500.0,8.844e-05,2]
[353199933,1739645433390,-934.08,8.844e-05,2]
[353199935,1739645433405,-500.0,8.844e-05,2]
[353199938,1739645433417,-500.0,8.844e-05,2]
[353199940,1739645433431,-500.0,8.844e-05,2]
[353199942,1739645433442,-3751.41,8.844e-05,2]
[353199944,1739645433451,-500.0,8.844e-05,2]
[353199964,1739645433584,-500.42452291,8.844e-05,2]
[353199973,1739645433699,-500.0,8.844e-05,2]
[353199975,1739645433711,-1268.53,8.844e-05,2]
[353199977,1739645433721,-500.0,8.844e-05,2]
[353199979,1739645433731,-460.60915205,8.844e-05,2]
[353199981,1739645433743,-500.0,8.844e-05,2]
[353199983,1739645433753,-666.32,8.844e-05,2]
[353199985,1739645433767,-500.0,8.844e-05,2]
[353199988,1739645433783,-500.0,8.844e-05,2]
[353199990,1739645433793,-500.0,8.844e-05,2]
[353199992,1739645433803,-500.0,8.844e-05,2]
[353199994,1739645433812,-500.0,8.844e-05,2]
[353199996,1739645433822,-500.0,8.844e-05,2]
[353199998,1739645433832,-500.0,8.844e-05,2]
[353200000,1739645433842,-500.0,8.844e-05,2]
[353200002,1739645433852,-500.0,8.844e-05,2]
[353200004,1739645433863,-602.67,8.844e-05,2]
[353200006,1739645433873,-500.0,8.844e-05,2]
[353200008,1739645433882,-500.0,8.844e-05,2]
[353200010,1739645433891,-500.0,8.844e-05,2]
[353200012,1739645433901,-246.80173895,8.844e-05,2]
[353200014,1739645433910,-500.57516036,8.844e-05,2]
[353200016,1739645433920,-500.0,8.844e-05,2]
[353200018,1739645433930,-500.0,8.844e-05,2]
[353200020,1739645433939,-500.0,8.844e-05,2]
[353200022,1739645433949,-500.0,8.845e-05,2]
[353200024,1739645433958,-500.0,8.845e-05,2]
[353200026,1739645433968,-500.0,8.845e-05,2]
[353200028,1739645433978,-500.0,8.845e-05,2]
[353200030,1739645433987,-500.0,8.845e-05,2]
[353200032,1739645433997,-500.0,8.845e-05,2]
[353200034,1739645434007,-500.0,8.845e-05,2]
[353200036,1739645434016,-507.59519644,8.845e-05,2]
[353200038,1739645434026,-583.85632625,8.845e-05,2]
[353200040,1739645434035,-616.37680467,8.845e-05,2]
[353200042,1739645434045,-500.0,8.845e-05,2]
[353200044,1739645434054,-500.0,8.845e-05,2]
[353200046,1739645434064,-500.0,8.845e-05,2]
[353200048,1739645434073,-505.29200223,8.845e-05,2]
[353200050,1739645434083,-500.0,8.845e-05,2]
[353200052,1739645434093,-182.95326227,8.854e-05,2]
[353200054,1739645434102,-3751.41,8.863e-05,2]
[353200056,1739645434112,-182.95326227,8.863e-05,2]
[353200058,1739645434122,-13035.01185121,8.864e-05,2]
[353200060,1739645434131,-500.0,8.868e-05,2]
[353200063,1739645434141,-500.0,8.868e-05,2]
[353200065,1739645434151,-500.0,8.868e-05,2]
[353200067,1739645434160,-500.0,8.868e-05,2]
[353200069,1739645434171,-500.0,8.868e-05,2]
[353200071,1739645434180,-500.0,8.868e-05,2]
[353200073,1739645434191,-500.0,8.868e-05,2]
[353200075,1739645434200,-500.0,8.868e-05,2]
[353200077,1739645434211,-500.0,8.868e-05,2]
[353200079,1739645434221,-500.0,8.868e-05,2]
[353200081,1739645434230,-500.0,8.868e-05,2]
[353200083,1739645434241,-500.0,8.868e-05,2]
[353200085,1739645434250,-500.0,8.868e-05,2]
[353200087,1739645434260,-500.0,8.868e-05,2]
[353200089,1739645434270,-500.0,8.868e-05,2]
[353200091,1739645434280,-500.0,8.868e-05,2]
[353200093,1739645434290,-500.0,8.868e-05,2]
[353200095,1739645434300,-500.0,8.868e-05,2]
[353200097,1739645434311,-500.0,8.868e-05,2]
[353200099,1739645434321,-500.0,8.868e-05,2]
[353200101,1739645434331,-500.0,8.868e-05,2]
[353200103,1739645434341,-500.0,8.868e-05,2]
[353200105,1739645434351,-500.0,8.868e-05,2]
[353200107,1739645434360,-500.0,8.868e-05,2]
[353200110,1739645434370,-500.0,8.868e-05,2]
[353200112,1739645434380,-500.0,8.868e-05,2]
[353200114,1739645434389,-500.0,8.868e-05,2]
[353200116,1739645434399,-427.23717708,8.868e-05,2]
[353200118,1739645434409,-3751.41,8.87e-05,2]
[353200120,1739645434419,-3751.41,8.87e-05,2]
[353200122,1739645434428,-500.0,8.872e-05,2]
[353200124,1739645434438,-278.75194864,8.872e-05,2]
[353200126,1739645434448,-500.0,8.872e-05,2]
[353200128,1739645434458,-332.25260074,8.872e-05,2]
[353200130,1739645434467,-500.0,8.872e-05,2]
[353200132,1739645434477,-151.0,8.872e-05,2]
[353200134,1739645434487,-3751.41,8.872e-05,2]
[353200136,1739645434496,-3751.41,8.872e-05,2]
[353200138,1739645434506,-3751.41,8.872e-05,2]
[353200140,1739645434516,-3751.41,8.872e-05,2]
[353200142,1739645434525,-3751.41,8.872e-05,2]
[353200144,1739645434536,-3751.41,8.872e-05,2]
[353200146,1739645434545,-3751.41,8.872e-05,2]
[353200148,1739645434555,-3751.41,8.872e-05,2]
[353200150,1739645434566,-3751.41,8.872e-05,2]
[353200152,1739645434576,-3751.41,8.872e-05,2]
[353200154,1739645434586,-3751.41,8.872e-05,2]
[353200156,1739645434596,-3751.41,8.872e-05,2]
[353200158,1739645434606,-3751.41,8.872e-05,2]
[353200160,1739645434616,-312158.78979227,8.873e-05,2]
[353200166,1739645434663,-500.0,8.868e-05,2]
[353200168,1739645434673,-500.0,8.868e-05,2]
[353200170,1739645434682,-500.0,8.868e-05,2]
[353200172,1739645434693,-1081.8522058,8.873e-05,2]
[353200174,1739645434705,-919.50929136,8.873e-05,2]
[353200176,1739645434716,-1241.71293202,8.873e-05,2]
[353200179,1739645434728,-846.39065047,8.873e-05,2]
[353200181,1739645434740,-10428.98615667,8.873e-05,2]
[353200183,1739645434751,-645.9825,8.873e-05,2]
[353200188,1739645434798,-424.33694533,8.868e-05,2]
[353200189,1739645434811,-75.66305467,8.868e-05,2]
[353200191,1739645434821,-500.0,8.868e-05,2]
[353200193,1739645434830,-500.0,8.868e-05,2]
[353200195,1739645434841,-19397.67085157,8.873e-05,2]
[353200247,1739645435354,500.0,8.843e-05,2]
[353200261,1739645435470,500.0,8.843e-05,2]
[353200286,1739645435713,585.80280478,8.843e-05,2]
[353200415,1739645437223,2783.02,8.843e-05,2]
[353200628,1739645439678,500.0,8.843e-05,2]
[353200752,1739645440741,500.0,8.843e-05,2]
[353200807,1739645441400,500.0,8.843e-05,2]
[353200808,1739645442503,500.0,8.843e-05,2]
[353200850,1739645443167,500.0,8.843e-05,2]
[353200915,1739645446278,543.6,8.843e-05,2]
[353201074,1739645449007,500.0,8.843e-05,2]
[353201075,1739645449043,500.0,8.843e-05,2]
[353201076,1739645449087,500.0,8.843e-05,2]
[353201077,1739645451013,500.0,8.843e-05,2]
[353201078,1739645452317,500.0,8.843e-05,2]
[353201079,1739645453304,4144.7,8.843e-05,2]
[353201080,1739645453788,500.0,8.843e-05,2]
[353201081,1739645455373,782.9,8.843e-05,2]
[353201082,1739645455825,500.0,8.843e-05,2]
[353201083,1739645457714,440.2177808,8.843e-05,2]
[353201084,1739645458914,500.0,8.843e-05,2]
[353201085,1739645461223,500.0,8.843e-05,2]
[353201086,1739645461310,500.0,8.843e-05,2]
[353201087,1739645462862,500.0,8.843e-05,2]
[353201088,1739645463287,797.82,8.843e-05,2]
[353201089,1739645466020,500.0,8.843e-05,2]
[353201090,1739645467092,2380.36,8.843e-05,2]
[353201091,1739645468320,500.0,8.843e-05,2]
[353201092,1739645469613,500.0,8.843e-05,2]
[353201093,1739645471402,623.93544274,8.843e-05,2]
[353201094,1739645473647,500.0,8.843e-05,2]
[353201095,1739645473895,500.0,8.843e-05,2]
[353201096,1739645474814,500.0,8.843e-05,2]
[353201097,1739645475430,361.12167557,8.843e-05,2]
[353201098,1739645475733,500.0,8.843e-05,2]
[353201099,1739645476133,500.0,8.843e-05,2]
[353201100,1739645476990,500.0,8.843e-05,2]
[353201101,1739645477190,500.0,8.843e-05,2]
[353201102,1739645477764,1428.68,8.843e-05,2]
[353201103,1739645479022,500.0,8.843e-05,2]
[353201104,1739645479238,500.0,8.843e-05,2]
[353201105,1739645483746,961.43,8.843e-05,2]
[353201106,1739645484761,500.0,8.843e-05,2]
[353201107,1739645484879,16722.32,8.843e-05,2]
[353201108,1739645486862,500.0,8.843e-05,2]
[353201109,1739645487282,500.0,8.843e-05,2]
[353201110,1739645487467,1124.33,8.843e-05,2]
[353201111,1739645487565,1154.34,8.843e-05,2]
[353201112,1739645488013,500.0,8.843e-05,2]
[353201113,1739645489434,1143.28,8.843e-05,2]
[353201114,1739645491378,500.0,8.843e-05,2]
[353201115,1739645491598,508.66813475,8.843e-05,2]
[353201116,1739645491910,500.0,8.843e-05,2]
[353201117,1739645493869,500.0,8.843e-05,2]
[353201118,1739645494484,500.0,8.843e-05,2]
[353201119,1739645495572,500.0,8.843e-05,2]
[353201120,1739645498430,500.0,8.843e-05,2]
[353201121,1739645499358,500.0,8.843e-05,2]
[353201122,1739645500027,500.0,8.843e-05,2]
[353201123,1739645500966,500.0,8.843e-05,2]
[353201124,1739645502340,500.0,8.843e-05,2]
[353201125,1739645502884,1436.18,8.843e-05,2]
[353201126,1739645505673,500.0,8.843e-05,2]
[353201127,1739645505856,46402.94,8.843e-05,2]
[353201128,1739645505980,500.0,8.843e-05,2]
[353201129,1739645506803,500.0,8.843e-05,2]
[353201130,1739645507709,500.0,8.843e-05,2]
[353201131,1739645509254,857.06,8.843e-05,2]
[353201132,1739645510870,500.0,8.843e-05,2]
[353201133,1739645511016,500.0,8.843e-05,2]
[353201134,1739645511257,1147.13,8.843e-05,2]
[353201135,1739645511521,500.0,8.843e-05,2]
[353201136,1739645516419,2541.73,8.843e-05,2]
[353201137,1739645518033,500.0,8.843e-05,2]
[353201138,1739645519211,1259.07,8.843e-05,2]
[353201139,1739645525168,601.78,8.843e-05,2]
[353201140,1739645526514,500.0,8.843e-05,2]
[353201141,1739645527428,2803.42,8.843e-05,2]
[353201142,1739645528593,500.0,8.843e-05,2]
[353201143,1739645529640,1758.79,8.843e-05,2]
[353201144,1739645529757,500.0,8.843e-05,2]
[353201145,1739645530998,500.0,8.843e-05,2]
[353201146,1739645532705,602.62,8.843e-05,2]
[353201147,1739645533664,500.0,8.843e-05,2]
[353201148,1739645534162,500.0,8.843e-05,2]
[353201149,1739645536273,500.0,8.843e-05,2]
[353201150,1739645536610,5349.49,8.843e-05,2]
[353201152,1739645536644,500.0,8.843e-05,2]
[353201153,1739645541035,1029.29,8.843e-05,2]
[353201154,1739645541668,1364.97,8.843e-05,2]
[353201155,1739645546236,500.0,8.843e-05,2]
[353201156,1739645546538,223.35307809,8.843e-05,2]
[353201157,1739645548619,529.60134002,8.843e-05,2]
[353201158,1739645549337,836.51,8.843e-05,2]
[353201159,1739645549690,832.74,8.843e-05,2]
[353201160,1739645556146,500.0,8.843e-05,2]
[353201161,1739645556421,539.65,8.843e-05,2]
[353201162,1739645558853,500.0,8.843e-05,2]
[353201163,1739645559863,500.0,8.843e-05,2]
[353201164,1739645559900,500.0,8.843e-05,2]
[353201165,1739645560808,2178.13,8.843e-05,2]
[353201166,1739645562942,500.0,8.843e-05,2]
[353201167,1739645563543,836.01,8.843e-05,2]
[353201168,1739645565479,500.0,8.843e-05,2]
[353201169,1739645565816,500.0,8.843e-05,2]
[353201170,1739645568120,500.0,8.843e-05,2]
[353201171,1739645569424,500.0,8.843e-05,2]
[353201172,1739645571005,500.0,8.843e-05,2]
[353201173,1739645572659,500.0,8.843e-05,2]
[353201174,1739645574454,868.73,8.843e-05,2]
[353201175,1739645574498,3467.82,8.843e-05,2]
[353201176,1739645575223,500.0,8.843e-05,2]
[353201177,1739645575368,500.0,8.843e-05,2]
[353201178,1739645575400,676.35,8.843e-05,2]
[353201179,1739645575553,500.0,8.843e-05,2]
[353201180,1739645576655,500.0,8.843e-05,2]
[353201181,1739645577695,500.0,8.843e-05,2]
[353201182,1739645578767,509.91734888,8.843e-05,2]
[353201183,1739645578982,575.76,8.843e-05,2]
[353201184,1739645579685,1046.43,8.843e-05,2]
[353201185,1739645581016,500.0,8.843e-05,2]
[353201186,1739645581318,500.0,8.843e-05,2]
[353201187,1739645581410,1565.29,8.843e-05,2]
[353201188,1739645583425,300.0,8.843e-05,2]
[353201189,1739645583852,500.0,8.843e-05,2]
[353201190,1739645584730,740.04,8.843e-05,2]
[353201191,1739645584923,500.0,8.843e-05,2]
[353201192,1739645585761,500.0,8.843e-05,2]
[353201193,1739645586413,500.0,8.843e-05,2]
[353201194,1739645586989,2049.69,8.843e-05,2]
[353201195,1739645587163,500.0,8.843e-05,2]
[353201196,1739645589337,872.02,8.843e-05,2]
[353201197,1739645589453,500.0,8.843e-05,2]
[353201199,1739645591215,506.69465261,8.843e-05,2]
[353201201,1739645595514,500.0,8.843e-05,2]